bitfinex/quotes_SOLUSD_20240626
["timestamp","ask_amount","ask_price","bid_price","bid_amount"]
[1719397812459,7.3211,136.6,136.55,7.3231]
[1719397812664,7.3211,136.6,136.54,23.6648]
[1719397812855,20.0,136.59,136.54,16.3411]
[1719397813074,20.0,136.59,136.55,0.34]
[1719397813577,27.3201,136.61,136.56,7.3227]
[1719397813948,7.63232215,136.64,136.55,18.6475]
[1719397813949,7.63232215,136.64,136.57,18.3049]
[1719397814175,20.0,136.63,136.58,0.17]
[1719397814367,20.0,136.65,136.58,0.17]
[1719397814571,35.01634292,136.65,136.6,7.3204]
[1719397814955,7.3186,136.64,136.59,7.321]
[1719397815176,20.0,136.63,136.59,7.321]
[1719397815683,7.69804292,136.65,136.6,0.17]
[1719397815978,7.69804292,136.65,136.62,7.3194]
[1719397816167,7.69804292,136.65,136.63,7.3189]
[1719397816369,7.69804292,136.65,136.62,7.3194]
[1719397816945,7.69804292,136.65,136.61,25.6193]
[1719397817169,7.69804292,136.65,136.61,18.2994]
[1719397817483,0.85452,136.69,136.63,18.2972]
[1719397817649,28.55256292,136.69,136.63,18.2972]
[1719397817848,7.3169,136.67,136.63,18.2972]
[1719397818046,7.69804292,136.68,136.58,6.2858]
[1719397818248,7.3193,136.63,136.58,13.6074]
[1719397818444,7.3193,136.63,136.57,18.3048]
[1719397818445,7.3205,136.61,136.57,18.3048]
[1719397818671,7.3197,136.62,136.57,25.6269]
[1719397819068,7.3191,136.63,136.57,18.3048]
[1719397819385,20.0,136.62,136.58,7.3215]
[1719397821382,27.3196,136.62,136.58,7.3215]
[1719397821558,20.0,136.62,136.55,13.3681]
[1719397821771,20.0,136.64,136.55,13.3681]
[1719397821972,7.3208,136.6,136.55,13.3681]
[1719397824488,7.3201,136.61,136.56,7.3227]
[1719397824693,20.0,136.6,136.56,7.3227]
[1719397825404,20.0,136.6,136.57,7.322]
[1719397825569,20.0,136.61,136.57,7.322]
[1719397825765,7.3209,136.6,136.56,18.4762]
[1719397825960,20.0,136.61,136.55,6.0449]
[1719397826175,20.0,136.61,136.54,23.6645]
[1719397826176,18.3032,136.59,136.54,16.3411]
[1719397826373,7.3228,136.56,136.52,6.4863]
[1719397827399,7.3228,136.56,136.52,13.8112]
[1719397827701,7.3224,136.57,136.52,13.8112]
[1719397827913,7.3224,136.57,136.53,7.3243]
[1719397829609,27.3219,136.58,136.53,7.3243]
[1719397830881,7.3223,136.57,136.53,7.3243]
[1719397831083,20.0,136.58,136.51,15.2901]
[1719397831283,7.325,136.52,136.47,15.589]
[1719397831480,7.3256,136.51,136.47,15.589]
[1719397831680,18.3104,136.54,136.45,13.6415]
[1719397831897,7.3261,136.5,136.45,13.6415]
[1719397832401,20.0,136.53,136.45,6.3129]
[1719397832588,20.0,136.49,136.45,6.3129]
[1719397832789,7.3271,136.48,136.45,6.3129]
[1719397833291,7.3271,136.48,136.44,22.614]
[1719397834072,7.3267,136.49,136.44,22.614]
[1719397834297,27.3272,136.48,136.44,15.285]
[1719397835401,20.0,136.48,136.45,7.3285]
[1719397835608,20.0,136.51,136.45,7.3285]
[1719397835790,7.3265,136.49,136.44,22.784]
[1719397835990,7.3265,136.49,136.43,18.3235]
[1719397835991,27.3272,136.48,136.43,25.6531]
[1719397836178,20.0,136.51,136.43,25.6531]
[1719397836179,7.3278,136.47,136.43,18.3235]
[1719397836578,7.3278,136.47,136.43,25.6531]
[1719397836805,7.3272,136.48,136.43,25.6531]
[1719397836977,20.0,136.51,136.44,7.3291]
[1719397836978,7.3266,136.49,136.44,7.3291]
[1719397837185,20.0,136.48,136.45,7.3286]
[1719397837701,20.0,136.48,136.44,7.3291]
[1719397838183,27.3271,136.48,136.44,7.3291]
[1719397838787,20.0,136.48,136.44,7.3291]
[1719397839583,27.3272,136.48,136.43,25.8231]
[1719397840502,20.0,136.48,136.44,7.3291]
[1719397841109,27.3272,136.48,136.43,25.823]
[1719397841405,20.0,136.48,136.44,7.329]
[1719397841906,20.0,136.48,136.43,25.8231]
[1719397842103,20.0,136.51,136.43,25.6531]
[1719397843378,7.3276,136.47,136.43,25.6531]
[1719397843788,7.3282,136.46,136.42,6.4345]
[1719397844993,7.3282,136.46,136.42,13.7647]
[1719397845510,7.3278,136.47,136.42,13.7647]
[1719397845714,20.0,136.46,136.44,7.329]
[1719397846015,20.0,136.46,136.43,7.3296]
[1719397846193,7.69804292,136.51,136.45,7.3285]
[1719397846397,27.3263,136.5,136.45,7.3285]
[1719397846600,7.3268,136.49,136.44,25.6517]
[1719397846792,20.0,136.48,136.44,25.6517]
[1719397848592,20.0,136.48,136.45,7.3285]
[1719397848993,27.3266,136.49,136.45,7.3285]
[1719397851020,20.0,136.49,136.45,7.3285]
[1719397852710,27.3266,136.49,136.45,7.3285]
[1719397853322,20.0,136.49,136.45,7.3285]
[1719397853626,27.3266,136.49,136.45,7.3285]
[1719397854620,20.0,136.49,136.45,7.3285]
[1719397854912,20.0,136.49,136.45,7.3284]
[1719397855092,27.3265,136.49,136.45,7.3284]
[1719397857605,27.3265,136.49,136.44,25.8216]
[1719397857902,27.3265,136.49,136.45,0.17]
[1719397858291,7.327,136.48,136.44,18.3226]
[1719397859530,7.327,136.48,136.44,25.6518]
[1719397859914,27.3267,136.49,136.44,25.6518]
[1719397860404,27.3267,136.49,136.45,7.92131123]
[1719397860605,27.3267,136.49,136.46,0.59436869]
[1719397860805,20.0,136.49,136.46,18.32]
[1719397861030,20.0,136.5,136.46,25.6477]
[1719397863131,20.0,136.5,136.45,0.17]
[1719397863436,7.3271,136.48,136.44,7.329]
[1719397863734,7.3271,136.48,136.43,25.823]
[1719397863928,7.3271,136.48,136.44,0.17]
[1719397864133,7.3276,136.47,136.43,25.653]
[1719397864527,7.3271,136.48,136.43,25.653]
[1719397865330,7.3271,136.48,136.44,11.00714754]
[1719397865935,7.3271,136.48,136.44,3.67794754]
[1719397866135,7.3271,136.48,136.43,25.6529]
[1719397867002,20.0,136.47,136.43,25.6529]
[1719397867508,20.0,136.47,136.44,7.3291]
[1719397867717,20.0,136.47,136.43,25.6529]
[1719397867902,20.0,136.47,136.43,18.3234]
[1719397868120,7.69804292,136.51,136.45,18.3213]
[1719397868121,20.0,136.5,136.45,18.3213]
[1719397868333,27.3263,136.5,136.45,25.6498]
[1719397868626,7.3265,136.49,136.45,18.3213]
[1719397868822,20.0,136.48,136.45,18.3213]
[1719397870309,20.0,136.48,136.44,7.4991]
[1719397870310,27.3271,136.48,136.44,0.17]
[1719397870510,27.3271,136.48,136.43,7.3297]
[1719397870839,27.3271,136.48,136.41,15.7097]
[1719397870840,7.3286,136.46,136.41,15.7097]
[1719397871140,7.3286,136.46,136.41,23.0405]
[1719397871312,20.0,136.48,136.41,15.7097]
[1719397871514,7.3297,136.44,136.39,31.8356]
[1719397871816,27.3298,136.43,136.39,31.8356]
[1719397872411,27.3298,136.43,136.39,18.3292]
[1719397872615,27.3298,136.43,136.39,25.661]
[1719397872919,27.3298,136.43,136.39,18.3292]
[1719397873110,20.0,136.43,136.39,25.6609]
[1719397873318,7.3293,136.44,136.39,25.6609]
[1719397873510,20.0,136.43,136.39,25.6609]
[1719397875039,20.0,136.43,136.4,8.68252047]
[1719397875226,20.0,136.43,136.39,18.3292]
[1719397875742,20.0,136.44,136.39,18.3292]
[1719397876338,20.0,136.44,136.4,7.3311]
[1719397876339,27.3292,136.44,136.4,7.3311]
[1719397876738,20.0,136.44,136.4,7.3311]
[1719397876934,20.0,136.44,136.41,25.6574]
[1719397877135,20.0,136.45,136.41,25.6574]
[1719397877818,27.3287,136.45,136.41,25.6574]
[1719397878052,7.3297,136.43,136.38,34.3482]
[1719397878251,27.3288,136.45,136.4,25.6594]
[1719397878449,27.3288,136.45,136.41,7.3308]
[1719397878621,7.3292,136.44,136.4,25.6595]
[1719397879114,7.3293,136.44,136.38,16.018]
[1719397879316,27.3288,136.45,136.4,7.3313]
[1719397880042,7.3295,136.44,136.39,25.661]
[1719397880346,27.3288,136.45,136.4,7.5013]
[1719397880725,20.0,136.45,136.4,0.17]
[1719397880936,20.0,136.45,136.41,7.3307]
[1719397881227,20.0,136.45,136.4,0.17]
[1719397881442,20.0,136.47,136.4,0.34]
[1719397881821,7.3287,136.45,136.4,7.6711]
[1719397882032,20.0,136.44,136.4,7.6711]
[1719397882232,20.0,136.44,136.39,25.6612]
[1719397882428,27.3294,136.44,136.39,25.6612]
[1719397882742,7.3299,136.43,136.39,18.3293]
[1719397882915,7.3299,136.43,136.39,25.6611]
[1719397883417,20.0,136.42,136.36,24.5595]
[1719397883622,7.3305,136.42,136.37,7.3326]
[1719397883840,20.0,136.41,136.37,7.3326]
[1719397884438,20.0,136.41,136.36,18.3331]
[1719397884750,7.3304,136.42,136.37,7.3326]
[1719397884951,20.0,136.41,136.37,7.3326]
[1719397885165,20.0,136.41,136.38,7.3323]
[1719397885524,20.0,136.41,136.37,7.3329]
[1719397885832,27.3297,136.44,136.39,7.3314]
[1719397886035,7.3299,136.43,136.38,26.0025]
[1719397886256,7.3299,136.43,136.39,0.17]
[1719397886544,20.0,136.44,136.37,6.6573]
[1719397886745,20.0,136.45,136.38,0.17]
[1719397886954,7.3305,136.42,136.38,0.34]
[1719397887651,7.3309,136.41,136.37,24.9889]
[1719397887837,7.69804292,136.44,136.38,7.6723]
[1719397888038,20.0,136.43,136.38,7.6723]
[1719397888244,20.0,136.43,136.38,7.5023]
[1719397888750,20.0,136.43,136.37,24.9889]
[1719397888927,7.3303,136.42,136.38,7.5024]
[1719397889126,7.3303,136.42,136.37,32.3217]
[1719397889340,7.3309,136.41,136.37,32.3217]
[1719397889743,27.69804292,136.43,136.35,16.4568]
[1719397889952,7.3314,136.4,136.35,23.7905]
[1719397890129,20.0,136.39,136.35,16.4568]
[1719397890332,20.0,136.39,136.35,23.7905]
[1719397890854,20.0,136.39,136.35,7.3337]
[1719397891050,27.332,136.39,136.34,25.6697]
[1719397891558,27.3321,136.39,136.34,18.3353]
[1719397891750,27.3321,136.39,136.34,25.6695]
[1719397891951,7.3328,136.38,136.34,18.3353]
[1719397892140,27.332,136.39,136.35,7.334]
[1719397892346,27.332,136.39,136.34,25.6697]
[1719397892546,7.3325,136.38,136.34,25.6697]
[1719397893038,7.3326,136.38,136.34,18.3353]
[1719397893246,7.3329,136.37,136.33,7.3346]
[1719397893662,7.3329,136.37,136.32,29.4844]
[1719397894032,20.0,136.39,136.32,22.1489]
[1719397894355,7.3328,136.38,136.33,9.81660993]
[1719397894651,7.3328,136.38,136.34,7.3345]
[1719397894846,20.0,136.37,136.35,2.55246061]
[1719397895245,7.69804292,136.39,136.33,18.3374]
[1719397895457,7.69804292,136.42,136.34,0.34]
[1719397895759,7.3321,136.39,136.34,1.94739546]
[1719397895958,15.02884292,136.42,136.34,1.80519978]
[1719397896161,14.96759955,136.45,136.4,7.3308]
[1719397896339,7.69804292,136.46,136.4,7.3312]
[1719397896540,15.02664292,136.45,136.41,1.76856546]
[1719397896752,15.02664292,136.45,136.4,7.3311]
[1719397896960,7.3293,136.44,136.4,7.3311]
[1719397897153,7.3293,136.44,136.39,25.6608]
[1719397897456,20.0,136.43,136.36,24.564]
[1719397897662,20.0,136.44,136.37,0.34]
[1719397897865,7.3299,136.43,136.38,7.3321]
[1719397898362,20.0,136.42,136.38,7.3321]
[1719397898669,20.0,136.42,136.36,24.564]
[1719397898670,27.69804292,136.42,136.36,6.2312]
[1719397898846,7.3315,136.4,136.36,6.2312]
[1719397899164,7.3309,136.41,136.36,13.5647]
[1719397899464,7.3314,136.4,136.36,7.3335]
[1719397899671,7.3312,136.41,136.35,15.2603]
[1719397900069,7.3319,136.39,136.35,22.5942]
[1719397900565,7.3325,136.38,136.35,15.2603]
[1719397900865,27.69804292,136.42,136.35,15.2603]
[1719397901278,27.69804292,136.42,136.38,7.3323]
[1719397901575,7.69804292,136.42,136.38,7.3323]
[1719397901773,18.3208,136.46,136.39,7.3314]
[1719397901951,7.3295,136.44,136.39,7.3314]
[1719397902852,7.69804292,136.44,136.4,7.331]
[1719397903068,15.02724292,136.44,136.4,7.331]
[1719397903582,15.02724292,136.44,136.39,23.5757]
[1719397904562,15.02724292,136.44,136.4,7.3313]
[1719397904767,7.69804292,136.44,136.41,7.3307]
[1719397904958,7.69804292,136.44,136.4,25.6593]
[1719397905154,7.69804292,136.44,136.41,7.3307]
[1719397907573,7.69804292,136.44,136.4,25.6593]
[1719397910856,7.69804292,136.44,136.41,7.3308]
[1719397911578,7.328,136.47,136.42,7.3299]
[1719397911784,48.73700651,136.49,136.42,7.3299]
[1719397911785,7.69804292,136.48,136.42,18.3255]
[1719397911955,7.69804292,136.48,136.44,18.3227]
[1719397912769,7.69804292,136.48,136.46,7.3281]
[1719397913668,7.69804292,136.48,136.44,18.3227]
[1719397913872,7.69804292,136.48,136.44,25.6517]
[1719397914079,7.3266,136.49,136.44,25.6517]
[1719397914782,15.02464292,136.49,136.44,25.6517]
[1719397915076,15.02464292,136.49,136.45,7.3286]
[1719397915576,7.69804292,136.49,136.45,7.3286]
[1719397915975,7.69804292,136.49,136.46,7.328]
[1719397916784,7.3256,136.51,136.46,7.328]
[1719397917083,20.0,136.5,136.46,7.328]
[1719397917583,27.3261,136.5,136.46,7.328]
[1719397918187,27.3261,136.5,136.45,7.3284]
[1719397918864,26.8261,136.5,136.45,7.3284]
[1719397920274,26.8261,136.5,136.46,7.3281]
[1719397921490,19.5,136.5,136.46,7.3281]
[1719397922088,37.00954292,136.53,136.48,7.327]
[1719397922271,20.0,136.52,136.48,7.327]
[1719397922586,27.325,136.52,136.47,7.3275]
[1719397923090,27.325,136.52,136.48,7.327]
[1719397923990,7.69804292,136.53,136.49,7.3264]
[1719397924485,15.02244292,136.53,136.49,7.3264]
[1719397924690,7.69804292,136.53,136.49,7.3264]
[1719397924876,15.02244292,136.53,136.48,25.6439]
[1719397925487,7.69804292,136.53,136.49,7.3264]
[1719397925991,15.02244292,136.53,136.49,7.3264]
[1719397926591,7.69804292,136.53,136.49,7.3264]
[1719397927393,7.69804292,136.53,136.5,7.3258]
[1719397927572,22.669,136.55,136.51,7.3253]
[1719397927779,20.0,136.54,136.51,7.3253]
[1719397928995,7.69804292,136.57,136.53,7.3238]
[1719397929193,15.02024292,136.57,136.53,7.3242]
[1719397930119,15.02024292,136.57,136.52,25.6367]
[1719397930270,15.02024292,136.57,136.49,16.6636]
[1719397930271,7.3242,136.54,136.49,42.3049]
[1719397930472,7.3237,136.55,136.5,7.3258]
[1719397933295,7.3271,136.48,136.44,7.3288]
[1719397933617,7.3281,136.46,136.4,7.3308]
[1719397933776,7.3281,136.46,136.41,7.3306]
[1719397933975,20.0,136.45,136.41,7.3306]
[1719397934170,27.3287,136.45,136.41,7.3306]
[1719397934695,20.0,136.45,136.41,7.3306]
[1719397936107,27.3287,136.45,136.4,18.3276]
[1719397936297,20.0,136.45,136.37,18.3315]
[1719397936496,20.0,136.47,136.37,18.3315]
[1719397936816,27.69804292,136.47,136.37,18.3315]
[1719397936987,7.3309,136.41,136.37,18.3315]
[1719397937188,18.3222,136.45,136.34,24.4809]
[1719397937404,18.3222,136.45,136.34,18.336]
[1719397937405,15.4805,136.43,136.34,18.336]
[1719397937589,20.0,136.42,136.34,18.336]
[1719397938383,7.3313,136.4,136.35,7.3339]
[1719397938694,7.3309,136.41,136.36,7.3333]
[1719397938905,20.0,136.4,136.36,7.3333]
[1719397939214,20.0,136.4,136.37,7.3327]
[1719397939424,15.4805,136.43,136.39,7.3317]
[1719397939594,15.4805,136.43,136.38,18.3306]
[1719397939595,7.3303,136.42,136.38,18.3306]
[1719397939786,22.8103,136.43,136.38,25.6629]
[1719397940224,15.4805,136.43,136.39,7.3317]
[1719397940407,15.02614292,136.46,136.4,18.3279]
[1719397940583,7.69804292,136.46,136.4,18.3279]
[1719397940905,7.69804292,136.46,136.42,25.655]
[1719397941586,15.02614292,136.46,136.42,18.3249]
[1719397944113,7.3288,136.45,136.4,7.3312]
[1719397945108,15.02634292,136.46,136.41,7.3307]
[1719397945929,7.69804292,136.46,136.41,18.3264]
[1719397946236,6.601,136.48,136.44,7.3288]
[1719397946388,20.0,136.47,136.44,7.3288]
[1719397947102,27.327,136.48,136.43,25.6533]
[1719397947406,7.3277,136.47,136.42,7.3301]
[1719397948194,35.02524292,136.48,136.43,7.3296]
[1719397949098,7.3276,136.47,136.42,25.6555]
[1719397949297,7.3292,136.44,136.39,18.4987]
[1719397949498,7.69804292,136.47,136.39,18.4987]
[1719397949704,7.3281,136.46,136.42,7.3302]
[1719397949899,7.69804292,136.47,136.44,7.3291]
[1719397950107,15.02574292,136.47,136.43,25.6537]
[1719397950403,15.02574292,136.47,136.43,18.3241]
[1719397950722,15.02574292,136.47,136.43,25.6538]
[1719397951802,7.69804292,136.47,136.43,25.6538]
[1719397952512,15.8646,136.5,136.43,18.3241]
[1719397952821,15.8646,136.5,136.39,36.8274]
[1719397952822,23.1906,136.5,136.46,7.3281]
[1719397953301,15.8646,136.5,136.46,7.3281]
[1719397953501,15.02364292,136.51,136.46,7.3281]
[1719397954223,7.69804292,136.51,136.47,18.3184]
[1719397954400,7.3238,136.54,136.5,7.3259]
[1719397954601,7.324,136.54,136.49,18.3158]
[1719397954828,7.324,136.54,136.49,25.6422]
[1719397955237,23.87294292,136.56,136.49,18.3158]
[1719397955523,7.3233,136.55,136.5,8.74412279]
[1719397955723,31.19604292,136.56,136.5,7.3256]
[1719397956025,23.87294292,136.56,136.5,7.3256]
[1719397956202,23.87294292,136.56,136.51,7.3254]
[1719397956732,15.02094292,136.56,136.51,7.3254]
[1719397957423,27.3234,136.55,136.5,7.3259]
[1719397957603,7.69804292,136.56,136.51,18.483]
[1719397957800,7.69804292,136.6,136.53,18.3105]
[1719397958006,20.0,136.59,136.54,0.17]
[1719397958208,20.0,136.59,136.54,0.34]
[1719397958722,20.0,136.59,136.55,7.3232]
[1719397958917,15.01864292,136.6,136.55,25.631]
[1719397960805,7.3211,136.59,136.55,25.631]
[1719397961005,7.3211,136.59,136.55,18.3079]
[1719397961511,20.0,136.58,136.53,7.3242]
[1719397961715,20.0,136.58,136.52,25.6363]
[1719397962424,7.3223,136.57,136.52,25.6363]
[1719397962630,20.0,136.58,136.53,7.3242]
[1719397963332,27.3218,136.58,136.53,7.3242]
[1719397963627,20.0,136.58,136.54,7.3236]
[1719397965031,27.3217,136.58,136.54,7.3236]
[1719397965231,27.3217,136.58,136.53,7.3242]
[1719397965617,27.3217,136.58,136.54,1.47114317]
[1719397966226,27.3217,136.58,136.54,7.3238]
[1719397966434,20.0,136.58,136.53,7.3243]
[1719397967024,27.322,136.58,136.53,7.3243]
[1719397969825,20.0,136.58,136.54,7.3237]
[1719397970034,20.0,136.58,136.55,7.3231]
[1719397970236,20.0,136.59,136.55,7.3231]
[1719397970554,20.0,136.59,136.56,7.3227]
[1719397970914,20.0,136.59,136.55,7.3231]
[1719397972554,7.3208,136.6,136.55,7.3231]
[1719397972753,7.3201,136.61,136.56,25.629]
[1719397972958,20.0,136.62,136.56,25.629]
[1719397973160,27.3199,136.62,136.57,7.322]
[1719397973361,7.3201,136.61,136.57,7.322]
[1719397973565,7.3201,136.61,136.56,25.629]
[1719397973870,7.69804292,136.63,136.58,18.3037]
[1719397974355,15.01714292,136.63,136.58,25.6249]
[1719397975157,7.69804292,136.63,136.57,0.34]
[1719397975335,7.3202,136.61,136.57,7.6621]
[1719397976055,7.3197,136.62,136.57,7.322]
[1719397976241,7.3202,136.61,136.56,7.3226]
[1719397976560,7.3212,136.59,136.55,25.6305]
[1719397976772,7.3208,136.6,136.56,7.3227]
[1719397977067,7.3202,136.61,136.56,7.3227]
[1719397978245,7.3209,136.6,136.55,25.6306]
[1719397978457,7.3209,136.6,136.56,7.3227]
[1719397978666,7.3203,136.61,136.56,7.3227]
[1719397979059,7.3197,136.62,136.57,7.3222]
[1719397979951,7.3201,136.61,136.57,7.3222]
[1719397980152,7.3201,136.61,136.56,7.3226]
[1719397980348,7.69804292,136.63,136.52,25.6362]
[1719397980349,7.3223,136.57,136.52,25.6362]
[1719397980563,7.3219,136.58,136.52,18.3114]
[1719397980742,7.3219,136.58,136.53,7.3242]
[1719397981647,7.3219,136.58,136.54,7.3238]
[1719397982060,7.3212,136.59,136.54,7.3238]
[1719397982275,27.3217,136.58,136.54,7.3238]
[1719397982949,20.0,136.58,136.54,7.3238]
[1719397983159,20.0,136.58,136.53,7.3242]
[1719397983346,7.69804292,136.61,136.49,15.4332]
[1719397983347,7.3232,136.56,136.51,7.3253]
[1719397983545,7.3233,136.55,136.51,7.3253]
[1719397983763,7.3239,136.54,136.5,7.3259]
[1719397983975,7.3238,136.54,136.49,41.0748]
[1719397984544,7.3234,136.55,136.5,7.3258]
[1719397984868,7.3234,136.55,136.51,7.3254]
[1719397985162,7.3234,136.55,136.5,7.3258]
[1719397985560,7.3239,136.54,136.49,41.0748]
[1719397985861,7.3239,136.54,136.49,25.6416]
[1719397986944,7.3234,136.55,136.5,7.3259]
[1719397987144,20.0,136.54,136.5,7.3259]
[1719397987766,20.0,136.54,136.49,19.90906208]
[1719397987767,20.0,136.54,136.51,7.3253]
[1719397987960,20.0,136.55,136.51,7.3253]
[1719397988345,20.0,136.55,136.49,18.3152]
[1719397988649,41.276,136.59,136.49,25.6413]
[1719397988650,7.3238,136.54,136.49,25.6413]
[1719397989151,7.3231,136.56,136.51,7.3253]
[1719397989458,7.3223,136.57,136.52,7.3248]
[1719397989656,7.3218,136.58,136.53,7.3243]
[1719397989872,20.0,136.57,136.53,7.3243]
[1719397990057,7.3218,136.58,136.53,7.3243]
[1719397990592,7.3223,136.57,136.52,7.3248]
[1719397990972,7.3218,136.58,136.53,7.3243]
[1719397991266,15.31235894,136.61,136.54,8.78578029]
[1719397991267,7.3209,136.6,136.54,8.78578029]
[1719397991567,15.31235894,136.61,136.54,8.78578029]
[1719397991568,7.69804292,136.61,136.55,1.46237344]
[1719397991762,15.01844292,136.61,136.56,7.3227]
[1719397992462,7.3209,136.6,136.55,19.77007344]
[1719397992661,7.69804292,136.61,136.53,13.9658]
[1719397992975,7.3234,136.55,136.51,15.468]
[1719397993342,7.3234,136.55,136.5,6.7216]
[1719397993343,7.3239,136.54,136.5,6.5516]
[1719397993643,7.3234,136.55,136.5,13.8775]
[1719397993842,18.3035,136.59,136.5,13.8775]
[1719397993843,7.3228,136.56,136.51,7.3254]
[1719397994042,7.3228,136.56,136.52,7.3248]
[1719397994256,7.3218,136.58,136.53,7.3242]
[1719397994454,20.0,136.6,136.53,7.3242]
[1719397994455,20.0,136.57,136.54,7.3238]
[1719397994655,7.3207,136.6,136.55,7.3231]
[1719397994960,20.0,136.59,136.55,7.3231]
[1719397995467,15.01814292,136.61,136.56,7.3225]
[1719397997669,7.69804292,136.61,136.57,7.3219]
[1719397998274,7.3191,136.63,136.58,7.3215]
[1719397998576,7.3188,136.64,136.59,25.6233]
[1719397998756,20.0,136.63,136.59,25.6233]
[1719397998960,27.319,136.63,136.59,18.3024]
[1719397999771,27.319,136.63,136.58,7.3216]
[1719398000351,20.0,136.63,136.59,7.321]
[1719398000679,7.69804292,136.65,136.62,7.3195]
[1719398000982,7.3169,136.67,136.63,7.3189]
[1719398001657,7.3169,136.67,136.62,25.6177]
[1719398001977,7.3163,136.68,136.63,7.3187]
[1719398002168,27.317,136.67,136.62,25.6178]
[1719398002764,20.0,136.67,136.64,7.3181]
[1719398002954,20.0,136.68,136.64,7.3181]
[1719398003153,20.0,136.68,136.62,18.2983]
[1719398003353,27.3165,136.68,136.63,7.4888]
[1719398003568,27.3165,136.68,136.63,0.17]
[1719398003777,27.3165,136.68,136.63,7.4888]
[1719398004354,7.317,136.67,136.62,25.6176]
[1719398004565,27.3165,136.68,136.63,7.3189]
[1719398005483,27.3165,136.68,136.64,7.3184]
[1719398005658,27.3165,136.68,136.62,18.2983]
[1719398005659,27.3165,136.68,136.63,7.3188]
[1719398005853,27.3165,136.68,136.64,7.3184]
[1719398006254,27.3165,136.68,136.63,7.3188]
[1719398006455,7.3169,136.67,136.62,18.2983]
[1719398006854,7.3169,136.67,136.63,7.3189]
[1719398007554,27.3165,136.68,136.63,7.3189]
[1719398008062,27.3165,136.68,136.64,7.3184]
[1719398008256,27.3165,136.68,136.62,25.6173]
[1719398008567,27.3165,136.68,136.63,7.6589]
[1719398008758,7.3172,136.67,136.62,25.6178]
[1719398008959,7.317,136.67,136.62,25.6178]
[1719398009465,7.3175,136.66,136.62,25.6178]
[1719398009670,20.0,136.68,136.59,33.4167]
[1719398009862,7.3188,136.64,136.59,40.7375]
[1719398010062,7.3181,136.65,136.6,7.3205]
[1719398010277,7.3185,136.64,136.6,7.3205]
[1719398010576,7.3196,136.62,136.58,7.3215]
[1719398010877,7.321,136.6,136.56,18.306]
[1719398011257,7.321,136.6,136.56,25.6287]
[1719398011453,18.2955,136.65,136.57,7.3221]
[1719398011777,27.3186,136.64,136.59,7.321]
[1719398011964,20.0,136.64,136.6,7.3206]
[1719398012956,15.6267,136.66,136.58,36.6059]
[1719398013167,15.6267,136.66,136.59,0.34]
[1719398013369,15.6267,136.66,136.62,18.2985]
[1719398013370,20.0,136.65,136.62,18.2985]
[1719398013956,20.0,136.65,136.61,7.32]
[1719398014477,27.318,136.65,136.6,7.3204]
[1719398014987,7.3185,136.64,136.59,25.6228]
[1719398015683,7.3185,136.64,136.6,7.3205]
[1719398016559,7.3185,136.64,136.59,25.6227]
[1719398016769,27.318,136.65,136.59,18.3018]
[1719398017168,20.0,136.65,136.6,7.3205]
[1719398017356,7.3188,136.64,136.59,25.6225]
[1719398017561,7.3188,136.64,136.59,18.3018]